fUSD/lending_fUSD_20260108
["ID","MTS","AMOUNT","RATE_DAILY","PERIOD"]
[400921390,1767863440816,-3044.11528765,0.00016438,2]
[400921392,1767863440826,-3044.11528765,0.00016438,2]
[400921394,1767863440835,-3044.11528765,0.00016438,2]
[400921396,1767863440844,-3044.11528765,0.00016438,2]
[400921398,1767863440853,-3044.11528765,0.00016438,2]
[400921401,1767863440863,-3044.11528765,0.00016438,2]
[400921402,1767863440873,-3044.11528765,0.00016438,2]
[400921404,1767863440883,-3044.11528765,0.00016438,2]
[400921407,1767863440894,-3044.11528765,0.00016438,2]
[400921409,1767863440903,-3044.11528765,0.00016438,2]
[400921410,1767863440912,-3044.11528765,0.00016438,2]
[400921412,1767863440923,-3044.11528765,0.00016438,2]
[400921414,1767863440934,-3044.11528765,0.00016438,2]
[400921416,1767863440943,-3044.11528765,0.00016438,2]
[400921418,1767863440954,-3044.11528765,0.00016438,2]
[400921420,1767863440965,-3044.11528765,0.00016438,2]
[400921423,1767863440977,-3044.11528765,0.00016438,2]
[400921424,1767863440988,-3044.11528765,0.00016438,2]
[400921426,1767863440997,-3044.11528765,0.00016438,2]
[400921428,1767863441006,-3044.11528765,0.00016438,2]
[400921431,1767863441017,-3044.11528765,0.00016438,2]
[400921432,1767863441027,-3044.11528765,0.00016438,2]
[400921434,1767863441038,-3044.11528765,0.00016438,2]
[400921436,1767863441050,-3044.11528765,0.00016438,2]
[400921438,1767863441060,-3044.11528765,0.00016438,2]
[400921440,1767863441070,-3044.11528765,0.00016438,2]
[400921442,1767863441079,-3044.11528765,0.00016438,2]
[400921444,1767863441088,-3044.11528765,0.00016438,2]
[400921446,1767863441097,-3044.11528765,0.00016438,2]
[400921448,1767863441107,-3044.11528765,0.00016438,2]
[400921451,1767863441117,-3044.11528765,0.00016438,2]
[400921452,1767863441127,-3044.11528765,0.00016438,2]
[400921455,1767863441136,-3086.64176778,0.00016438,2]
[400921456,1767863441147,-800.0,0.00016438,2]
[400921458,1767863441157,-654.79,0.00016438,2]
[400921460,1767863441167,-303.0,0.00016438,3]
[400921463,1767863441176,-1000.0,0.00016449,2]
[400921465,1767863441186,-1000.0,0.00016515,2]
[400921467,1767863441196,-414.56,0.00016524,2]
[400921469,1767863441205,-1000.0,0.00016535,2]
[400921471,1767863441215,-2135.16,0.00016559,2]
[400921472,1767863441224,-164.07,0.0001664,2]
[400921475,1767863441234,-12613.1441037,0.00016676,2]
[400921477,1767863441243,-833.0,0.0001672,2]
[400921479,1767863441252,-162.0,0.0001672,2]
[400921481,1767863441261,-833.0,0.0001672,2]
[400921483,1767863441271,-833.0,0.0001672,2]
[400921485,1767863441279,-552.0,0.0001672,2]
[400921487,1767863441288,-1000.0,0.00016789,2]
[400921489,1767863441297,-713.97283296,0.00016803,2]
[400921491,1767863441307,-279.33,0.00016823,2]
[400921492,1767863441315,-500.0,0.00016828,2]
[400921494,1767863441324,-150.0,0.00016828,2]
[400921496,1767863441334,-307.64145892,0.00016838,2]
[400921498,1767863441343,-8100.12,0.00016841,2]
[400921500,1767863441352,-157.72323008,0.00016853,2]
[400921502,1767863441362,-572.20817409,0.00016883,2]
[400921504,1767863441371,-150.0,0.00016883,2]
[400921506,1767863441380,-188.05654745,0.00016938,2]
[400921508,1767863441389,-500.0,0.00016938,2]
[400921511,1767863441401,-500.0,0.00016938,2]
[400921513,1767863441411,-233.66248833,0.00016938,2]
[400921514,1767863441420,-150.0,0.00016938,2]
[400921516,1767863441429,-150.0,0.00016938,2]
[400921519,1767863441439,-500.0,0.00016938,2]
[400921520,1767863441448,-150.0,0.00016938,2]
[400921523,1767863441457,-150.0,0.00016938,2]
[400921525,1767863441467,-150.0,0.00016938,2]
[400921527,1767863441477,-150.0,0.00016938,2]
[400921529,1767863441487,-150.0,0.00016938,2]
[400921531,1767863441496,-500.0,0.00016938,2]
[400921533,1767863441506,-500.0,0.00016938,2]
[400921535,1767863441515,-1000.0,0.00016943,2]
[400921537,1767863441524,-2500.0,0.00016954,2]
[400921539,1767863441533,-2500.0,0.00016954,2]
[400921541,1767863441546,-2500.0,0.00016954,2]
[400921543,1767863441556,-476.3156368,0.00016954,2]
[400921545,1767863441565,-200.589792,0.00016983,2]
[400921547,1767863441575,-1252.0,0.00016984,2]
[400921549,1767863441584,-50623.16,0.00016986,2]
[400921551,1767863441593,-500.0,0.00016993,2]
[400921552,1767863441602,-500.0,0.00016993,2]
[400921553,1767863441613,-150.0,0.00016993,2]
[400921554,1767863441622,-150.0,0.00016993,2]
[400921555,1767863441632,-501.65586908,0.00016993,2]
[400921556,1767863441641,-150.0,0.00016993,2]
[400921557,1767863441650,-150.0,0.00016993,2]
[400921558,1767863441660,-150.0,0.00016993,2]
[400921559,1767863441670,-150.0,0.00016993,2]
[400921560,1767863441680,-217.19962447,0.00016993,2]
[400921561,1767863441691,-580.07664263,0.00016993,2]
[400921562,1767863441701,-500.88287597,0.00016993,2]
[400921563,1767863441710,-1375.17747862,0.00017,2]
[400921565,1767863441720,-1500.0,0.00017001,2]
[400921567,1767863441730,-833.0,0.0001704,2]
[400921569,1767863441739,-833.0,0.0001704,2]
[400921571,1767863441748,-162.0,0.0001704,2]
[400921573,1767863441757,-162.0,0.0001704,2]
[400921575,1767863441766,-162.0,0.0001704,2]
[400921577,1767863441775,-205.38896935,0.00017048,2]
[400921579,1767863441785,-549.62704522,0.00017048,2]
[400921581,1767863441794,-150.0,0.00017048,2]
[400921583,1767863441803,-307.64145888,0.0001705,2]
[400921585,1767863441813,-150.0,0.00017079,2]
[400921587,1767863441822,-5242.82669963,0.00017082,2]
[400921589,1767863441831,-500.0,0.00017099,2]
[400921591,1767863441840,-20452.74518303,0.000171,2]
[400921593,1767863441850,-1000.0,0.000171,2]
[400921595,1767863441860,-1000.0,0.00017112,2]
[400921597,1767863441870,-1238.4,0.00017114,2]
[400921599,1767863441879,-150.0,0.00017126,2]
[400921601,1767863441889,-150.0,0.00017126,2]
[400921603,1767863441898,-150.0,0.00017131,2]
[400921605,1767863441907,-1000.0,0.00017172,2]
[400921607,1767863441916,-414.56,0.0001718,2]
[400921609,1767863441925,-1238.4,0.00017195,2]
[400921611,1767863441934,-500.0,0.0001722,2]
[400921613,1767863441944,-500.0,0.0001722,2]
[400921615,1767863441953,-469.50438451,0.00017237,2]
[400921617,1767863441963,-150.0,0.00017259,2]
[400921618,1767863441976,-307.64145888,0.00017263,2]
[400921621,1767863441986,-1238.4,0.00017275,2]
[400921622,1767863441995,-150.0,0.00017311,2]
[400921625,1767863442005,-680.9567779,0.00017351,2]
[400921734,1767863443041,-59.43304988,0.00017351,2]
[400921736,1767863443050,-1238.4,0.00017356,2]
[400921738,1767863443059,-623.756,0.00017358,2]
[400921739,1767863443068,-3467.0,0.00017358,2]
[400921741,1767863443078,-1405.0,0.00017358,2]
[400921743,1767863443087,-1284.259,0.00017358,2]
[400921745,1767863443095,-648.98,0.00017358,2]
[400921746,1767863443105,-923.791,0.0001736,2]
[400921748,1767863443114,-1207.372,0.0001736,2]
[400921750,1767863443123,-833.0,0.0001736,2]
[400921752,1767863443132,-833.0,0.0001736,2]
[400921754,1767863443141,-162.0,0.0001736,2]
[400921755,1767863443151,-833.0,0.0001736,2]
[400921757,1767863443160,-162.0,0.0001736,2]
[400921759,1767863443168,-229.74942432,0.00017365,2]
[400921760,1767863443178,-1000.0,0.000174,2]
[400921762,1767863443187,-6552.0,0.00017403,2]
[400921764,1767863443196,-4819.0,0.00017403,2]
[400921766,1767863443206,-565.0,0.00017404,2]
[400921767,1767863443215,-157.72323008,0.00017434,2]
[400921769,1767863443226,-1238.4,0.00017436,2]
[400921771,1767863443236,-1152.0,0.00017466,2]
[400921772,1767863443245,-307.64145888,0.00017475,2]
[400921774,1767863443254,-2000.0,0.000175,2]
[400921776,1767863443263,-500.0,0.000175,4]
[400921778,1767863443272,-3000.0,0.00017502,2]
[400921780,1767863443281,-3000.0,0.00017502,2]
[400921781,1767863443292,-3000.0,0.00017502,2]
[400921783,1767863443302,-1238.4,0.00017517,2]
[400921785,1767863443311,-242.30773041,0.00017534,2]
[400921787,1767863443320,-1000.0,0.00017561,2]
[400921788,1767863443329,-1238.4,0.00017597,2]
[400921790,1767863443339,-4108.82966408,0.00017598,2]
[400921792,1767863443347,-168.0,0.00017607,2]
[400921794,1767863443356,-4609.0,0.0001761,2]
[400921795,1767863443365,-691.39774486,0.00017622,2]
[400921797,1767863443374,-175.094,0.0001763,2]
[400921799,1767863443383,-2801.507,0.0001763,2]
[400921801,1767863443392,-1000.0,0.00017638,2]
[400921803,1767863443401,-1000.0,0.00017651,2]
[400921804,1767863443411,-500.0,0.00017671,2]
[400921806,1767863443420,-1238.4,0.00017678,2]
[400921808,1767863443430,-833.0,0.0001768,2]
[400921810,1767863443440,-162.0,0.0001768,2]
[400921812,1767863443449,-833.0,0.0001768,2]
[400921814,1767863443459,-162.0,0.0001768,2]
[400921815,1767863443467,-833.0,0.0001768,2]
[400921817,1767863443477,-833.0,0.0001768,2]
[400921819,1767863443486,-162.0,0.0001768,2]
[400921821,1767863443495,-252.0,0.00017683,2]
[400921823,1767863443505,-307.64145888,0.00017688,2]
[400921824,1767863443514,-1000.0,0.000177,2]
[400921826,1767863443523,-1000.0,0.00017709,2]
[400921828,1767863443533,-1000.0,0.00017712,2]
[400921830,1767863443541,-500.0,0.00017714,2]
[400921832,1767863443550,-300.0,0.0001773,2]
[400921833,1767863443559,-300.0,0.00017736,2]
[400921835,1767863443568,-300.0,0.00017737,2]
[400921837,1767863443577,-300.0,0.00017739,2]
[400921839,1767863443586,-300.0,0.00017739,2]
[400921841,1767863443595,-1000.0,0.00017743,2]
[400921842,1767863443605,-300.0,0.00017743,2]
[400921844,1767863443615,-300.0,0.00017744,2]
[400921846,1767863443626,-300.0,0.00017756,2]
[400921848,1767863443635,-300.0,0.00017757,2]
[400921850,1767863443644,-1238.4,0.00017758,2]
[400921851,1767863443653,-300.0,0.0001776,2]
[400921853,1767863443663,-300.0,0.00017764,2]
[400921855,1767863443672,-300.0,0.00017766,2]
[400921857,1767863443681,-300.0,0.00017766,2]
[400921859,1767863443690,-300.0,0.0001777,2]
[400921860,1767863443700,-300.0,0.0001777,2]
[400921862,1767863443710,-300.0,0.0001778,2]
[400921864,1767863443719,-300.0,0.00017781,2]
[400921866,1767863443729,-300.0,0.00017783,2]
[400921868,1767863443739,-300.0,0.00017784,2]
[400921869,1767863443748,-500.0,0.00017785,2]
[400921871,1767863443757,-300.0,0.00017786,2]
[400921873,1767863443766,-1000.0,0.00017791,2]
[400921875,1767863443776,-150.0,0.00017791,2]
[400921877,1767863443785,-300.0,0.00017795,2]
[400921878,1767863443794,-500.0,0.00017797,2]
[400921880,1767863443803,-429.10137339,0.00017797,2]
[400921882,1767863443813,-300.0,0.00017798,2]
[400921884,1767863443822,-300.0,0.00017798,2]
[400921885,1767863443831,-300.0,0.00017798,2]
[400921887,1767863443841,-150.0,0.00017799,2]
[400921889,1767863443851,-300.0,0.000178,2]
[400921891,1767863443860,-300.0,0.00017802,2]
[400921893,1767863443870,-300.0,0.00017804,2]
[400921894,1767863443879,-300.0,0.00017806,2]
[400921896,1767863443888,-300.0,0.00017808,2]
[400921898,1767863443897,-10000.0,0.00017809,2]
[400921900,1767863443906,-300.0,0.00017812,2]
[400921902,1767863443916,-300.0,0.00017812,2]
[400921903,1767863443925,-300.0,0.00017813,2]
[400921905,1767863443934,-300.0,0.00017817,2]
[400921907,1767863443943,-1000.0,0.00017819,2]
[400921909,1767863443952,-25000.0,0.00017821,3]
[400921911,1767863443962,-150.0,0.00017821,2]
[400921913,1767863443975,-300.0,0.00017822,2]
[400921914,1767863443985,-1000.0,0.00017823,2]
[400921916,1767863443994,-300.0,0.00017825,2]
[400921918,1767863444003,-1000.0,0.00017826,2]
[400921920,1767863444014,-300.0,0.00017826,2]
[400921922,1767863444023,-300.0,0.00017827,2]
[400921924,1767863444032,-25000.0,0.0001783,3]
[400921925,1767863444041,-300.0,0.0001783,2]
[400921927,1767863444050,-300.0,0.00017834,2]
[400921929,1767863444059,-300.0,0.00017835,2]
[400921931,1767863444068,-183.13,0.00017836,2]
[400921933,1767863444077,-25000.0,0.00017838,3]
[400921934,1767863444087,-1238.4,0.00017839,2]
[400921936,1767863444096,-300.0,0.00017841,2]
[400921938,1767863444106,-466.59,0.00017841,2]
[400921940,1767863444116,-300.0,0.00017841,2]
[400921942,1767863444125,-466.59,0.00017841,2]
[400921944,1767863444134,-179.04,0.00017841,2]
[400921945,1767863444143,-171.3,0.00017841,2]
[400921947,1767863444152,-466.59,0.00017841,2]
[400921949,1767863444161,-177.5,0.00017841,2]
[400921951,1767863444170,-466.59,0.00017841,2]
[400921953,1767863444179,-171.3,0.00017841,2]
[400921954,1767863444189,-300.0,0.00017842,2]
[400921956,1767863444198,-279.32360576,0.00017842,2]
[400921958,1767863444207,-300.0,0.00017843,2]
[400921960,1767863444217,-300.0,0.00017843,2]
[400921962,1767863444226,-300.0,0.00017843,2]
[400921965,1767863444235,-300.0,0.00017845,2]
[400921967,1767863444245,-300.0,0.00017845,2]
[400921969,1767863444254,-276.38,0.00017845,2]
[400921971,1767863444263,-300.0,0.00017847,2]
[400921972,1767863444272,-25000.0,0.00017847,3]
[400921973,1767863444282,-297.0,0.0001785,2]
[400921974,1767863444291,-300.0,0.00017851,2]
[400921975,1767863444299,-290.0,0.00017853,2]
[400921976,1767863444309,-200.0,0.00017855,2]
[400921977,1767863444318,-276.38,0.00017855,2]
[400921978,1767863444327,-300.0,0.00017856,2]
[400921979,1767863444336,-300.0,0.00017856,2]
[400921980,1767863444344,-300.0,0.00017856,2]
[400921981,1767863444354,-200.0,0.00017856,2]
[400921982,1767863444363,-200.0,0.00017856,2]
[400921983,1767863444372,-25000.0,0.00017856,3]
[400921984,1767863444381,-300.0,0.00017857,2]
[400921985,1767863444391,-300.0,0.00017857,2]
[400921986,1767863444400,-300.0,0.0001786,2]
[400921987,1767863444411,-500.0,0.00017864,2]
[400921988,1767863444420,-25000.0,0.00017865,3]
[400921989,1767863444429,-276.38,0.00017866,2]
[400921990,1767863444438,-177.4888516,0.00017872,3]
[400921991,1767863444447,-25000.0,0.00017874,3]
[400921992,1767863444456,-300.0,0.00017874,2]
[400921994,1767863444465,-300.0,0.00017875,2]
[400921995,1767863444474,-300.0,0.00017876,2]
[400921997,1767863444483,-300.0,0.00017877,2]
[400921999,1767863444492,-300.0,0.00017877,2]
[400922001,1767863444502,-300.0,0.00017879,2]
[400922003,1767863444511,-25000.0,0.00017882,3]
[400922005,1767863444520,-300.0,0.00017883,2]
[400922007,1767863444530,-300.0,0.00017884,2]
[400922008,1767863444539,-300.0,0.00017891,2]
[400922011,1767863444548,-25000.0,0.00017891,3]
[400922013,1767863444557,-300.0,0.00017892,2]
[400922015,1767863444566,-300.0,0.00017892,2]
[400922017,1767863444576,-300.0,0.00017893,2]
[400922019,1767863444585,-300.0,0.00017895,2]
[400922021,1767863444594,-300.0,0.00017897,2]
[400922023,1767863444603,-300.0,0.00017898,2]
[400922025,1767863444612,-767.7842514,0.00017899,2]
[400922027,1767863444621,-7148.26358025,0.000179,3]
[400922029,1767863444631,-33580.3823,0.000179,2]
[400922031,1767863444645,-1000.0,0.000179,2]
[400922033,1767863444655,-1512.26051247,0.000179,2]
[400922035,1767863444664,-300.0,0.000179,2]
[400922037,1767863444673,-500.0,0.000179,3]
[400922039,1767863444682,-25000.0,0.000179,3]
[400922041,1767863444691,-2295.79903135,0.000179,2]
[400922043,1767863444700,-394.17199481,0.000179,2]
[400922045,1767863444710,-307.64145888,0.000179,2]
[400922047,1767863444719,-150.0,0.00017901,2]
[400922049,1767863444728,-300.0,0.00017903,2]
[400922051,1767863444738,-300.0,0.00017906,2]
[400922053,1767863444747,-300.0,0.00017908,2]
[400922055,1767863444756,-300.0,0.0001791,2]
[400922057,1767863444765,-300.0,0.00017911,2]
[400922059,1767863444775,-300.0,0.00017912,2]
[400922061,1767863444784,-300.0,0.00017918,2]
[400922063,1767863444793,-1238.4,0.00017919,2]
[400922065,1767863444803,-300.0,0.00017927,2]
[400922067,1767863444812,-300.0,0.00017932,2]
[400922069,1767863444821,-300.0,0.00017934,2]
[400922071,1767863444830,-500.0,0.00017937,2]
[400922073,1767863444840,-500.0,0.00017937,2]
[400922075,1767863444849,-500.0,0.00017937,2]
[400922077,1767863444858,-500.0,0.00017937,2]
[400922079,1767863444867,-300.0,0.00017937,2]
[400922081,1767863444876,-300.0,0.00017943,2]
[400922083,1767863444885,-300.0,0.00017944,2]
[400922085,1767863444894,-300.0,0.00017946,2]
[400922087,1767863444902,-300.0,0.00017947,2]
[400922089,1767863444912,-300.0,0.00017949,2]
[400922091,1767863444921,-17524.5993024,0.00017952,2]
[400922092,1767863444930,-300.0,0.00017953,2]
[400922094,1767863444939,-300.0,0.00017959,2]
[400922096,1767863444949,-150.0,0.00017959,2]
[400922098,1767863444958,-300.0,0.00017961,2]
[400922100,1767863444967,-300.0,0.00017961,2]
[400922103,1767863444980,-300.0,0.00017963,2]
[400922105,1767863444990,-1000.0,0.00017971,2]
[400922107,1767863444999,-156.0,0.00017973,2]
[400922108,1767863445008,-150.0,0.00017973,2]
[400922111,1767863445019,-500.0,0.00017973,2]
[400922112,1767863445028,-500.0,0.00017973,2]
[400922115,1767863445038,-426.73386812,0.00017973,2]
[400922117,1767863445047,-500.0,0.00017973,2]
[400922118,1767863445057,-500.0,0.00017973,2]
[400922121,1767863445067,-500.0,0.00017973,2]
[400922122,1767863445076,-500.0,0.00017973,2]
[400922124,1767863445085,-150.49880534,0.00017973,2]
[400922127,1767863445094,-500.17178809,0.00017973,2]
[400922128,1767863445103,-500.0,0.00017973,2]
[400922130,1767863445112,-500.0,0.00017973,2]
[400922133,1767863445121,-500.0,0.00017973,2]
[400922134,1767863445131,-338.62982115,0.00017973,2]
[400922136,1767863445140,-500.0,0.00017973,2]
[400922138,1767863445149,-500.0,0.00017973,2]
[400922140,1767863445159,-500.0,0.00017973,2]
[400922143,1767863445168,-501.18870733,0.00017973,2]
[400922145,1767863445177,-500.0,0.00017973,2]
[400922147,1767863445190,-500.0,0.00017973,2]
[400922149,1767863445199,-500.0,0.00017973,2]
[400922151,1767863445208,-385.16009683,0.00017973,2]
[400922154,1767863445216,-500.75581913,0.00017973,2]
[400922157,1767863445226,-1000.0,0.00017973,2]
[400922159,1767863445235,-277.65248168,0.00017973,2]
[400922162,1767863445244,-671.59374208,0.00017973,2]
[400922165,1767863445253,-500.0,0.00017973,2]
[400922167,1767863445262,-150.0,0.00017973,2]
[400922170,1767863445271,-300.0,0.00017978,2]
[400922173,1767863445281,-166.04276169,0.00017978,2]
[400922176,1767863445290,-300.0,0.0001798,2]
[400922178,1767863445299,-152.75103688,0.00017982,2]
[400922179,1767863445308,-500.0,0.00017982,2]
[400922181,1767863445317,-300.0,0.00017984,2]
[400922183,1767863445326,-300.0,0.00017986,2]
[400922186,1767863445335,-300.0,0.0001799,2]
[400922188,1767863445344,-1561.43224408,0.0001799,2]
[400922190,1767863445353,-1561.43224408,0.0001799,2]
[400922192,1767863445363,-300.0,0.00017993,2]
[400922194,1767863445372,-300.0,0.00017994,2]
[400922196,1767863445380,-300.0,0.00017996,2]
[400922198,1767863445389,-200.589792,0.00017997,2]
[400922200,1767863445399,-300.0,0.00017999,2]
[400922201,1767863445407,-11518.53087648,0.00017999,2]
[400922203,1767863445416,-500.0,0.00017999,2]
[400922206,1767863445426,-500.0,0.00017999,2]
[400922207,1767863445436,-500.0,0.00017999,2]
[400922209,1767863445445,-500.0,0.00017999,2]
[400922211,1767863445454,-500.0,0.00017999,2]
[400922213,1767863445463,-500.0,0.00017999,2]
[400922215,1767863445472,-500.0,0.00017999,2]
[400922217,1767863445481,-500.0,0.00017999,2]
[400922219,1767863445491,-266.05716988,0.00017999,2]
[400922221,1767863445500,-300.0,0.00017999,2]
[400922223,1767863445509,-666.0,0.00017999,2]
[400922225,1767863445518,-300.0,0.00017999,2]
[400922227,1767863445527,-558.43229755,0.00017999,2]
[400922230,1767863445538,-300.0,0.00017999,2]
[400922231,1767863445547,-666.0,0.00017999,2]
[400922233,1767863445556,-300.0,0.00017999,2]
[400922235,1767863445565,-300.0,0.00017999,2]
[400922238,1767863445579,-5970.77362135,0.00017999,2]
[400922240,1767863445588,-5562248.10567546,0.00018,2]
[400922242,1767863445604,-593.70570175,0.00018,2]
[400922245,1767863445620,-10276.6821059,0.00018,2]
[400922248,1767863445643,-118.04557884,0.00018,2]
[400922250,1767863445653,-582.79046967,0.00018,2]
[400922253,1767863445668,-1046.42200763,0.00018,2]
[400922256,1767863445683,-1229.60496495,0.00018,2]
[400922258,1767863445693,-4595.69415591,0.00018,2]
[400922260,1767863445704,-2817.06137197,0.00018,2]
[400922262,1767863445716,-4044.69726074,0.00018,2]
[400922264,1767863445727,-4363.81798553,0.00018,2]
[400922267,1767863445738,-16535.53256987,0.00018,2]
[400922292,1767863445969,-2500.0,0.00013051,2]
[400922294,1767863445980,-833.0,0.000164,2]
[400922296,1767863445990,-162.0,0.0001736,2]
[400922298,1767863445999,-6572.64992968,0.00018,2]
[400922300,1767863446011,-3727.36,0.00018,2]
[400922302,1767863446022,-4075994.40243491,0.00018,2]
[400922304,1767863446033,-274.61225945,0.00018,2]
[400922307,1767863446050,-540.06779302,0.00018,2]
[400922394,1767863446881,-1.7e-07,0.00018,2]
[400922398,1767863446910,-12613.1441037,0.00017288,2]
[400922400,1767863446920,-275077.08701665,0.00018,2]
[400922402,1767863446931,-55902.51029231,0.00018,2]
[400922445,1767863447372,-12.56051517,0.0001536,2]
[400922471,1767863447687,-579.81514892,0.00013516,2]
[400922473,1767863447696,-138.43948483,0.0001536,2]
[400922475,1767863447707,-151.0,0.0001536,2]
[400922477,1767863447716,-369.44536625,0.00016095,2]
[400922481,1767863447747,-399.96463375,0.00016095,2]
[400922483,1767863447758,-183.08496693,0.000164,2]
[400922487,1767863447784,-649.91503307,0.000164,2]
[400922489,1767863447797,-36.86555981,0.00016989,2]
[400922497,1767863448015,-127.63811727,0.00016989,2]
[400922499,1767863448030,-441.36184595,0.00016989,2]
[400922502,1767863448048,-163.54447697,0.00016989,2]
[400922504,1767863448059,-142.95192247,0.0001736,2]
[400922544,1767863448466,-19.04807753,0.0001736,2]
[400922546,1767863448476,-299.15180248,0.00017404,2]
[400922548,1767863448488,-428.14468468,0.00017404,2]
[400922550,1767863448500,-685.26851284,0.00017404,2]
[400922552,1767863448511,-9.86748371,0.00017404,2]
[400922554,1767863448523,-868.9541,0.00017404,2]
[400922558,1767863448546,-1574.66041629,0.00017404,2]
[400922560,1767863448557,-769.41,0.00017883,2]
[400922562,1767863448567,-2424.8224459,0.000179,2]
[400925503,1767863532959,-276.89939798,0.00012314,2]
[400925504,1767863534299,9446.21120404,0.00011928,2]
[400925505,1767863534324,10000.01,0.00011928,2]
[400925506,1767863534349,10000.01,0.00011928,2]
[400925507,1767863534375,10000.01,0.00011928,2]
[400925508,1767863534400,10000.01,0.00011928,2]
[400925509,1767863534424,10000.01,0.00011928,2]
[400925510,1767863534449,10000.01,0.00011928,2]
[400925511,1767863534473,10000.01,0.00011928,2]
[400925512,1767863534497,10000.01,0.00011928,2]
[400925513,1767863534521,10000.01,0.00011928,2]
[400925514,1767863534545,10000.01,0.00011928,2]
[400925515,1767863534568,10000.01,0.00011928,2]
[400925516,1767863534591,10000.01,0.00011928,2]
[400925519,1767863542516,-364.95035467,0.00011928,2]
[400925520,1767863555861,-553.79879596,0.00011928,2]
[400925521,1767863560486,-10000.01,0.00011928,2]
[400925522,1767863560610,-10000.01,0.00011928,2]
[400925523,1767863560800,-10000.01,0.00011928,2]
[400925524,1767863560930,-10000.01,0.00011928,2]
[400925525,1767863561118,-10000.01,0.00011928,2]
[400925526,1767863561239,-10000.01,0.00011928,2]
[400925527,1767863561371,-10000.01,0.00011928,2]
[400925528,1767863561481,-10000.01,0.00011928,2]
[400925529,1767863561630,-10000.01,0.00011928,2]
[400925530,1767863561740,-10000.01,0.00011928,2]
[400925531,1767863575857,-10000.01,0.00011928,2]
[400925532,1767863576044,-10000.01,0.00011928,2]
[400925533,1767863576166,-10000.01,0.00011928,2]
[400925534,1767863576292,-10000.01,0.00011928,2]
[400925535,1767863576401,-10000.01,0.00011928,2]
[400925536,1767863576530,-10000.01,0.00011928,2]
[400925537,1767863576657,-10000.01,0.00011928,2]
[400925538,1767863576809,-10000.01,0.00011928,2]
[400925539,1767863576973,-10000.01,0.00011928,2]
[400925540,1767863577188,-10000.01,0.00011928,2]
[400925541,1767863606568,-300.0,0.00011927,2]
[400925542,1767863606597,-1200.0,0.00011927,2]
[400925543,1767863606657,-7000.01,0.00011928,2]
[400925544,1767863606758,-10000.01,0.00011928,2]
[400925545,1767863606872,-10000.01,0.00011928,2]
[400925546,1767863606975,-10000.01,0.00011928,2]
[400925547,1767863607104,-10000.01,0.00011928,2]
[400925548,1767863608162,-10000.01,0.00011928,2]
[400925549,1767863608175,-10000.01,0.00011928,2]
[400925550,1767863608188,-10000.01,0.00011928,2]
[400925551,1767863608204,-10000.01,0.00011928,2]
[400925557,1767863612786,-10000.01,0.00011928,2]
[400925558,1767863612809,-10000.01,0.00011928,2]
[400925559,1767863612831,-10000.01,0.00011928,2]
[400925560,1767863612903,-10000.01,0.00011928,2]
[400925561,1767863613411,-10000.01,0.00011928,2]
[400925564,1767863631686,-860.35892194,0.00011828,2]
[400925565,1767863631715,-860.35892194,0.00011828,2]
[400925566,1767863631760,-6558.57431224,0.00011928,2]
[400925567,1767863634850,-10000.01,0.00011928,2]
[400925573,1767863701045,-1484.561398,0.00011768,2]